[Event "Mukachevo IM June 2019"]
[Site "Mukachevo"]
[Date "2019.06.28"]
[Round "8.2"]
[White "Larkin, Vladyslav"]
[Black "Karelina, Polina"]
[Result "1-0"]
[ECO "A45"]
[WhiteElo "2398"]
[BlackElo "1718"]
[Annotator "NA"]
[PlyCount "51"]
[EventDate "2019.06.24"]
[EventType "tourn"]
[EventCountry "UKR"]
[SourceTitle "playchess.com"]
[Source "ChessBase"]
[SourceQuality "1"]
[TimeControl "40/5400+30:900+30"]

1. d4 {[%emt 0:05:26]} Nf6 {[%emt 0:00:00]} 2. Bf4 {[%emt 0:00:39]} g6 {[%emt 0:00:00]} 3. e3 {[%emt 0:00:05]} Bg7 {[%emt 0:00:21]} 4. h3 {[%emt 0:00:07]} O-O {[%emt 0:00:16]} 5. Nd2 {[%emt 0:00:06]} d6 {[%emt 0:00:10]} 6. c3 {[%emt 0:00:08]} Nbd7 {[%emt 0:00:57]} 7. Ngf3 {[%emt 0:00:26]} c5 {[%emt 0:01:52]} 8. Bh2 {[%emt 0:08:02]} b6 {[%emt 0:00:58]} 9. Bd3 {[%emt 0:03:41]} Bb7 {[%emt 0:00:49]} 10. O-O {[%emt 0:01:21]} Rc8 {[%emt 0:04:18]} 11. Qe2 {[%emt 0:01:09]} Re8 {[%emt 0:04:00]} 12. Bc4 {[%emt 0:01:58]} d5 {[%emt 0:05:23]} 13. Bb5 {[%emt 0:01:16]} Bc6 {[%emt 0:03:52]} 14. Ba6 {[%emt 0:00:17]} Ra8 {[%emt 0:00:19]} 15. b4 {[%emt 0:00:04]} cxb4 {[%emt 0:07:34]} 16. cxb4 {[%emt 0:00:04]} Nb8 {[%emt 0:01:36]} 17. Bd3 {[%emt 0:08:58]} Nbd7 {[%emt 0:00:10]} 18. Rfc1 {[%emt 0:00:32]} Bb7 {[%emt 0:00:29]} 19. Bc7 {[%emt 0:03:15]} Qc8 {[%emt 0:03:12]} 20. Bxb6 {[%emt 0:00:18]} Qb8 {[%emt 0:01:54]} 21. Bc7 {[%emt 0:00:05]} Qc8 {[%emt 0:00:21]} 22. a4 {[%emt 0:01:17]} Nb8 {[%emt 0:01:18]} 23. Ba5 {[%emt 0:00:10]} Qe6 {[%emt 0:00:57]} 24. Rc7 {[%emt 0:08:58]} Bc8 {[%emt 0:01:50]} 25. Rac1 {[%emt 0:02:10]} Na6 {[%emt 0:00:47]} 26. R7c6 {[%emt 0:00:20]} 1-0

[Event "Mukachevo IM June 2019"]
[Site "Mukachevo"]
[Date "2019.06.28"]
[Round "8.3"]
[White "Tiba, Vladyslav"]
[Black "Oros, Robert"]
[Result "1/2-1/2"]
[ECO "C04"]
[WhiteElo "2375"]
[BlackElo "2321"]
[Annotator "NA"]
[PlyCount "60"]
[EventDate "2019.06.24"]
[EventType "tourn"]
[EventCountry "UKR"]
[SourceTitle "playchess.com"]
[Source "ChessBase"]
[SourceQuality "1"]
[TimeControl "40/5400+30:900+30"]

1. e4 {[%emt 0:00:00]} e6 {[%emt 0:00:00]} 2. d4 {[%emt 0:00:44]} d5 {[%emt 0:00:00]} 3. Nd2 {[%emt 0:00:57]} Nc6 {[%emt 0:00:03]} 4. Ngf3 {[%emt 0:00:35]} Nf6 {[%emt 0:00:20]} 5. e5 {[%emt 0:00:10]} Nd7 {[%emt 0:00:05]} 6. Nb3 {[%emt 0:01:08]} b6 {[%emt 0:01:15]} 7. h4 {[%emt 0:07:09]} a5 {[%emt 0:04:00]} 8. a4 {[%emt 0:00:08]} Ba6 {[%emt 0:00:41]} 9. Bxa6 {[%emt 0:07:06]} Rxa6 {[%emt 0:00:03]} 10. Ng5 {[%emt 0:04:39]} Qe7 {[%emt 0:04:35]} 11. c3 {[%emt 0:11:02]} Ra8 {[%emt 0:01:43]} 12. Qd3 {[%emt 0:08:43]} f5 {[%emt 0:13:41]} 13. Qf3 {[%emt 0:05:13]} h5 {[%emt 0:02:23]} 14. Nd2 {[%emt 0:07:14]} g6 {[%emt 0:02:15]} 15. b3 {[%emt 0:00:47]} Nd8 {[%emt 0:00:18]} 16. Ba3 {[%emt 0:02:54]} c5 {[%emt 0:02:17]} 17. c4 {[%emt 0:00:36]} Nc6 {[%emt 0:00:39]} 18. Nxe6 {[%emt 0:04:35]} Qxe6 {[%emt 0:01:43]} 19. cxd5 {[%emt 0:00:06]} Ndxe5 {[%emt 0:01:47]} 20. dxe6 {[%emt 0:04:30]} Nxf3+ {[%emt 0:00:12]} 21. Nxf3 {[%emt 0:00:04]} Nxd4 {[%emt 0:04:35]} 22. Nxd4 {[%emt 0:01:08]} cxd4 {[%emt 0:00:23]} 23. Bxf8 {[%emt 0:01:28]} Rxf8 {[%emt 0:00:06]} 24. O-O-O {[%emt 0:01:27]} Rd8 {[%emt 0:00:55]} 25. Rh3 {[%emt 0:01:32]} Rf6 {[%emt 0:00:15]} 26. Rhd3 {[%emt 0:00:12]} Rxe6 {[%emt 0:00:11]} 27. Rxd4 {[%emt 0:00:06]} Rc6+ {[%emt 0:02:11]} 28. Kb2 {[%emt 0:00:24]} Rxd4 {[%emt 0:00:14]} 29. Rxd4 {[%emt 0:00:07]} Ke7 {[%emt 0:00:07]} 30. g3 {[%emt 0:00:23]} Ke6 {[%emt 0:00:10]} 1/2-1/2

[Event "Mukachevo IM June 2019"]
[Site "Mukachevo"]
[Date "2019.06.28"]
[Round "8.4"]
[White "Terbe, Zsuzsanna"]
[Black "Priehoda, Vitezslav"]
[Result "1/2-1/2"]
[ECO "A40"]
[WhiteElo "2160"]
[BlackElo "2361"]
[Annotator "NA"]
[PlyCount "62"]
[EventDate "2019.06.24"]
[EventType "tourn"]
[EventCountry "UKR"]
[SourceTitle "playchess.com"]
[Source "ChessBase"]
[SourceQuality "1"]
[TimeControl "40/5400+30:900+30"]

1. d4 {[%emt 0:00:00]} e6 {[%emt 0:00:00]} 2. Bf4 {[%emt 0:00:23]} f5 {[%emt 0:00:00]} 3. Nf3 {[%emt 0:00:23]} Nf6 {[%emt 0:00:00]} 4. e3 {[%emt 0:00:24]} b6 {[%emt 0:00:41]} 5. Bd3 {[%emt 0:00:51]} Bb7 {[%emt 0:02:34]} 6. O-O {[%emt 0:00:23]} Be7 {[%emt 0:03:17]} 7. c4 {[%emt 0:01:29]} O-O {[%emt 0:01:19]} 8. Re1 {[%emt 0:02:18]} Nh5 {[%emt 0:07:28]} 9. Bg3 {[%emt 0:02:40]} Nxg3 {[%emt 0:08:24]} 10. hxg3 {[%emt 0:00:09]} Bf6 {[%emt 0:03:46]} 11. Nc3 {[%emt 0:00:33]} Nc6 {[%emt 0:01:30]} 12. a3 {[%emt 0:06:08]} a5 {[%emt 0:09:52]} 13. Bc2 {[%emt 0:02:42]} g5 {[%emt 0:06:20]} 14. Qd2 {[%emt 0:04:17]} g4 {[%emt 0:01:24]} 15. Nh2 {[%emt 0:00:14]} Kh8 {[%emt 0:01:39]} 16. d5 {[%emt 0:00:43]} Ne5 {[%emt 0:01:04]} 17. b3 {[%emt 0:00:33]} a4 {[%emt 0:00:07]} 18. Nxa4 {[%emt 0:03:18]} Rxa4 {[%emt 0:00:06]} 19. bxa4 {[%emt 0:00:20]} Nxc4 {[%emt 0:00:03]} 20. Qd1 {[%emt 0:01:01]} Bxa1 {[%emt 0:11:25]} 21. Qxa1+ {[%emt 0:00:08]} Qf6 {[%emt 0:04:18]} 22. dxe6 {[%emt 0:01:19]} dxe6 {[%emt 0:04:10]} 23. Bb3 {[%emt 0:00:29]} Ne5 {[%emt 0:02:10]} 24. Rc1 {[%emt 0:02:01]} Rf7 {[%emt 0:03:21]} 25. Nf1 {[%emt 0:01:39]} Kg7 {[%emt 0:02:56]} 26. Qc3 {[%emt 0:01:52]} Rd7 {[%emt 0:01:08]} 27. Nd2 {[%emt 0:01:29]} Nd3 {[%emt 0:01:27]} 28. Bxe6 {[%emt 0:03:40]} Nxc1 {[%emt 0:02:31]} 29. Qxf6+ {[%emt 0:00:10]} Kxf6 {[%emt 0:00:04]} 30. Bxd7 {[%emt 0:00:06]} Bd5 {[%emt 0:01:39]} 31. f3 {[%emt 0:08:30]} c6 1/2-1/2

[Event "Mukachevo IM June 2019"]
[Site "Mukachevo"]
[Date "2019.06.28"]
[Round "8.5"]
[White "Vachylia, Andrii"]
[Black "Boricsev, Oleg"]
[Result "1/2-1/2"]
[ECO "C01"]
[WhiteElo "2263"]
[BlackElo "2252"]
[Annotator "NA"]
[PlyCount "51"]
[EventDate "2019.06.24"]
[EventType "tourn"]
[EventCountry "UKR"]
[SourceTitle "playchess.com"]
[Source "ChessBase"]
[SourceQuality "1"]
[TimeControl "40/5400+30:900+30"]

1. e4 {[%emt 0:00:00]} e6 {[%emt 0:04:29]} 2. d4 {[%emt 0:00:03]} d5 {[%emt 0:00:07]} 3. exd5 {[%emt 0:00:06]} exd5 {[%emt 0:00:09]} 4. Nf3 {[%emt 0:00:06]} Nf6 {[%emt 0:00:04]} 5. Bd3 {[%emt 0:00:05]} Be7 {[%emt 0:00:08]} 6. O-O {[%emt 0:00:07]} Bg4 {[%emt 0:00:04]} 7. h3 {[%emt 0:00:10]} Bh5 {[%emt 0:00:05]} 8. Bg5 {[%emt 0:00:11]} O-O {[%emt 0:00:06]} 9. Nbd2 {[%emt 0:00:05]} Nbd7 {[%emt 0:00:05]} 10. Re1 {[%emt 0:00:09]} Re8 {[%emt 0:00:05]} 11. c3 {[%emt 0:00:41]} c6 {[%emt 0:00:16]} 12. Qc2 {[%emt 0:00:09]} Bg6 {[%emt 0:00:06]} 13. Ne5 {[%emt 0:00:27]} Bxd3 {[%emt 0:00:18]} 14. Qxd3 {[%emt 0:00:03]} Nf8 {[%emt 0:00:19]} 15. Bxf6 {[%emt 0:00:42]} Bxf6 {[%emt 0:00:06]} 16. Ng4 {[%emt 0:00:25]} Qd6 {[%emt 0:01:15]} 17. Nf3 {[%emt 0:01:04]} h5 {[%emt 0:00:48]} 18. Nxf6+ {[%emt 0:00:05]} Qxf6 {[%emt 0:00:05]} 19. a4 {[%emt 0:00:20]} a5 {[%emt 0:00:06]} 20. Ne5 {[%emt 0:00:15]} Re7 {[%emt 0:00:32]} 21. Re3 {[%emt 0:00:19]} Rae8 {[%emt 0:00:57]} 22. Rae1 {[%emt 0:00:06]} Qh6 {[%emt 0:00:33]} 23. Ng4 {[%emt 0:00:43]} Qd6 {[%emt 0:00:13]} 24. Ne5 {[%emt 0:00:05]} Qh6 {[%emt 0:00:05]} 25. Ng4 {[%emt 0:00:15]} Qd6 {[%emt 0:00:05]} 26. Ne5 {[%emt 0:00:20]} 1/2-1/2

[Event "Mukachevo IM June 2019"]
[Site "Mukachevo"]
[Date "2019.06.29"]
[Round "9.1"]
[White "Oros, Robert"]
[Black "Sakun, Volodymyr"]
[Result "1/2-1/2"]
[ECO "D46"]
[WhiteElo "2321"]
[BlackElo "2349"]
[Annotator "NA"]
[PlyCount "55"]
[EventDate "2019.06.24"]
[EventType "tourn"]
[EventCountry "UKR"]
[SourceTitle "playchess.com"]
[Source "ChessBase"]
[SourceQuality "1"]
[TimeControl "40/5400+30:900+30"]

1. d4 {[%emt 0:00:00]} d5 {[%emt 0:00:00]} 2. c4 {[%emt 0:00:00]} c6 {[%emt 0:00:00]} 3. Nc3 {[%emt 0:00:13]} Nf6 {[%emt 0:00:00]} 4. Nf3 {[%emt 0:00:09]} e6 {[%emt 0:00:00]} 5. e3 {[%emt 0:00:09]} Nbd7 {[%emt 0:00:00]} 6. Bd3 {[%emt 0:00:15]} Bd6 {[%emt 0:00:17]} 7. O-O {[%emt 0:00:12]} O-O {[%emt 0:00:06]} 8. e4 {[%emt 0:00:16]} dxc4 {[%emt 0:00:24]} 9. Bxc4 {[%emt 0:00:10]} e5 {[%emt 0:00:06]} 10. Re1 {[%emt 0:02:39]} Qe7 {[%emt 0:02:25]} 11. h3 {[%emt 0:04:26]} b5 {[%emt 0:04:11]} ({Better is} 11... exd4 $11 12. Nxd4 Ne5) 12. Bd3 {[%emt 0:01:55]} Bb7 {[%emt 0:02:08]} 13. a4 {[%emt 0:02:21]} a6 {[%emt 0:02:55]} 14. Bg5 {[%emt 0:01:27]} h6 {[%emt 0:03:54]} 15. Bh4 {[%emt 0:02:23]} Rfd8 {[%emt 0:02:37]} 16. axb5 {[%emt 0:01:09]} axb5 {[%emt 0:00:46]} 17. Rxa8 {[%emt 0:00:33]} Bxa8 {[%emt 0:00:08]} 18. Qa1 {[%emt 0:04:07]} b4 $14 {[%emt 0:08:20]} (18... exd4 $11 19. Nxd4 Be5) 19. Ne2 {[%emt 0:02:53]} c5 {[%emt 0:01:57]} 20. d5 {[%emt 0:02:22]} g5 {[%emt 0:06:38]} 21. Nxg5 {[%emt 0:00:14]} hxg5 {[%emt 0:00:04]} 22. Bxg5 {[%emt 0:00:05]} Nf8 {[%emt 0:03:19]} 23. Ng3 {[%emt 0:00:34]} N8h7 {[%emt 0:00:17]} 24. Nf5 {[%emt 0:02:10]} Qf8 {[%emt 0:04:42]} 25. Nh6+ {[%emt 0:07:09]} Kg7 {[%emt 0:00:04]} 26. Nf5+ {[%emt 0:00:14]} Kg8 {[%emt 0:00:03]} 27. Nh6+ {[%emt 0:00:09]} Kg7 {[%emt 0:00:04]} 28. Nf5+ {[%emt 0:00:08]} 1/2-1/2

[Event "Mukachevo IM June 2019"]
[Site "Mukachevo"]
[Date "2019.06.29"]
[Round "9.2"]
[White "Karelina, Polina"]
[Black "Terbe, Zsuzsanna"]
[Result "0-1"]
[ECO "B23"]
[WhiteElo "1718"]
[BlackElo "2160"]
[Annotator "ChessBase"]
[PlyCount "28"]
[EventDate "2019.06.24"]
[EventType "tourn"]
[EventCountry "UKR"]
[SourceTitle "playchess.com"]
[Source "ChessBase"]
[SourceQuality "1"]
[TimeControl "40/5400+30:900+30"]

1. e4 {[%emt 0:00:00]} c5 {[%emt 0:00:00]} 2. Nc3 {[%emt 0:00:00]} Nc6 {[%emt 0:00:00]} 3. f4 {[%emt 0:00:00]} g6 {[%emt 0:00:00]} 4. Nf3 {[%emt 0:00:08]} Bg7 {[%emt 0:00:00]} 5. Bc4 {[%emt 0:00:33]} e6 {[%emt 0:00:03]} 6. a3 {[%emt 0:00:47]} Nge7 {[%emt 0:00:10]} 7. O-O {[%emt 0:00:40]} d5 {[%emt 0:00:11]} 8. Bb5 {[%emt 0:01:19]} O-O {[%emt 0:00:53]} 9. e5 {[%emt 0:01:57]} f6 {[%emt 0:06:02]} 10. Qe1 {[%emt 0:06:41]} fxe5 {[%emt 0:04:04]} 11. fxe5 {[%emt 0:02:00]} Nd4 {[%emt 0:07:21]} 12. Ba4 {[%emt 0:07:17]} Nxf3+ {[%emt 0:02:31]} 13. gxf3 {[%emt 0:01:02]} c4 {[%emt 0:00:50]} 14. Nd1 {[%emt 0:03:23]} b5 {[%emt 0:00:19]} 0-1

[Event "Mukachevo IM June 2019"]
[Site "Mukachevo"]
[Date "2019.06.29"]
[Round "9.4"]
[White "Priehoda, Vitezslav"]
[Black "Vachylia, Andrii"]
[Result "1/2-1/2"]
[ECO "E98"]
[WhiteElo "2361"]
[BlackElo "2263"]
[Annotator "NA"]
[PlyCount "69"]
[EventDate "2019.06.24"]
[EventType "tourn"]
[EventCountry "UKR"]
[SourceTitle "playchess.com"]
[Source "ChessBase"]
[SourceQuality "1"]
[TimeControl "40/5400+30:900+30"]

1. c4 {[%emt 0:00:00]} Nf6 {[%emt 0:00:00]} 2. d4 {[%emt 0:00:00]} g6 {[%emt 0:00:00]} 3. Nc3 {[%emt 0:00:02]} Bg7 {[%emt 0:00:00]} 4. e4 {[%emt 0:00:06]} d6 {[%emt 0:00:01]} 5. Be2 {[%emt 0:01:11]} O-O {[%emt 0:00:07]} 6. Nf3 {[%emt 0:00:03]} e5 {[%emt 0:00:08]} 7. O-O {[%emt 0:00:07]} Nc6 {[%emt 0:00:04]} 8. d5 {[%emt 0:00:08]} Ne7 {[%emt 0:00:04]} 9. Ne1 {[%emt 0:00:23]} Nd7 {[%emt 0:00:16]} 10. Be3 {[%emt 0:00:06]} f5 {[%emt 0:00:03]} 11. f3 {[%emt 0:00:06]} f4 {[%emt 0:04:43]} 12. Bf2 {[%emt 0:00:07]} g5 {[%emt 0:00:02]} 13. a4 {[%emt 0:00:17]} a5 {[%emt 0:01:23]} 14. Nd3 {[%emt 0:00:34]} Ng6 {[%emt 0:18:00] E99: King's Indian: Classical Main Line: 9 Ne1 Nd7 10 f3 f5} (14... b6 15. b4 axb4 16. Nxb4 Nf6 17. Be1 Rf7 18. Nd3 Ng6 19. Nf2 Bf8 20. Nb5 h5 21. a5 bxa5 22. Rxa5 Rxa5 23. Bxa5 g4 24. fxg4 hxg4 25. Bxg4 Nxg4 26. Nxg4 {0-1 (40) Kozul,Z (2608)-Vovk,A (2614) Trieste 2014}) 15. c5 {[%emt 0:01:12]} Rf7 {[%emt 0:01:28]} 16. Nb5 {[%emt 0:09:52]} Nf6 {[%emt 0:00:10]} 17. cxd6 $146 {[%emt 0:02:19]} ({Predecessor:} 17. Rc1 g4 18. cxd6 cxd6 19. Qc2 g3 20. hxg3 fxg3 21. Bxg3 Bh6 22. Nc7 Rb8 23. Bf2 Bd7 {1-0 (42) Koerant,F (1955)-Panagiotakos,P (1868) Athens 2013}) 17... cxd6 {[%emt 0:00:05]} 18. b4 {[%emt 0:02:28]} g4 {[%emt 0:01:06]} 19. bxa5 $14 {[%emt 0:00:06]} Rxa5 {[%emt 0:01:53]} 20. Rc1 {[%emt 0:04:56]} Bf8 {[%emt 0:04:16]} 21. Qc2 {[%emt 0:41:26]} Bd7 {[%emt 0:00:23]} 22. Qc7 {[%emt 0:00:12]} Qxc7 {[%emt 0:00:13]} 23. Rxc7 {[%emt 0:00:07]} Rxa4 {[%emt 0:00:17]} 24. Rxb7 {[%emt 0:01:26]} Rg7 {[%emt 0:02:06]} 25. Rc1 {[%emt 0:09:25]} h5 {[%emt 0:09:21]} 26. Kh1 {[%emt 0:09:03]} h4 {[%emt 0:04:24]} 27. Nc3 {[%emt 0:02:31]} Ra3 {[%emt 0:08:48]} 28. fxg4 {[%emt 0:01:04]} Bxg4 {[%emt 0:00:57]} 29. Rxg7+ {[%emt 0:00:07]} Bxg7 {[%emt 0:00:02]} 30. Bxg4 {[%emt 0:00:23]} Nxg4 {[%emt 0:00:04]} 31. h3 {[%emt 0:01:35]} Nxf2+ {[%emt 0:00:12]} 32. Nxf2 {[%emt 0:00:01]} f3 {[%emt 0:00:04]} 33. Ng4 {[%emt 0:06:39]} fxg2+ {[%emt 0:00:21]} 34. Kxg2 {[%emt 0:00:01]} Nf4+ {[%emt 0:00:12]} 35. Kh2 1/2-1/2